[Event "44th Chess Olympiad Open 2022"]
[Site "Chennai"]
[Date "2022.07.29"]
[Round "1.43"]
[White "Stefansson, Hannes"]
[Black "Adu-Poku, Kwabena"]
[Result "1-0"]
[WhiteElo "2541"]
[BlackElo "1974"]
[Annotator "RC"]
[PlyCount "83"]
[EventDate "2022.??.??"]
[TimeControl "60"]

1. e4 {[%emt 0:00:13]} e5 {[%emt 0:00:13]} 2. Nf3 {[%emt 0:00:18]} Nc6 {
[%emt 0:00:14]} 3. Bb5 {[%emt 0:00:28]} a6 {[%emt 0:00:23]} 4. Ba4 {[%emt 0:00:
00]} Nf6 {[%emt 0:00:29]} 5. O-O {[%emt 0:00:22]} Be7 {[%emt 0:00:37]} 6. d3 {
[%emt 0:01:15]} b5 {[%emt 0:01:45]} 7. Bb3 {[%emt 0:00:12]} d6 {[%emt 0:00:51]}
8. a4 {[%emt 0:00:31]} Bd7 {[%emt 0:01:39]} 9. c3 {[%emt 0:01:17]} Na5 {
[%emt 0:03:10]} 10. Bc2 {[%emt 0:00:41]} c5 {[%emt 0:00:15]} 11. d4 {[%emt 0:
00:00]} Qb8 {[%emt 0:02:11]} 12. h3 {[%emt 0:08:50]} O-O {[%emt 0:02:07]} 13.
Bg5 {[%emt 0:07:08]} Rd8 {[%emt 0:03:32]} 14. Nbd2 {[%emt 0:02:59]} cxd4 {
[%emt 0:04:47]} 15. cxd4 {[%emt 0:00:09]} Nc6 {[%emt 0:00:21]} 16. axb5 {
[%emt 0:05:13]} axb5 {[%emt 0:01:00]} 17. Rxa8 {[%emt 0:00:24]} Qxa8 {[%emt 0:
00:00]} 18. d5 {[%emt 0:04:00]} Nb4 {[%emt 0:02:18]} 19. Bb1 {[%emt 0:00:09]}
Rc8 {[%emt 0:05:40]} 20. Nb3 {[%emt 0:01:10]} h6 {[%emt 0:05:42]} 21. Be3 {
[%emt 0:01:58]} Bd8 {[%emt 0:10:37]} 22. Ne1 {[%emt 0:05:00]} Be8 {[%emt 0:00:
00]} 23. f4 {[%emt 0:05:08]} Nd7 {[%emt 0:00:49]} 24. Nf3 {[%emt 0:01:35]} Bf6
{[%emt 0:07:40]} 25. Kh1 {[%emt 0:08:37]} Qb8 {[%emt 0:13:38]} 26. fxe5 {
[%emt 0:10:25]} Nxe5 {[%emt 0:00:55]} 27. Nfd4 {[%emt 0:00:28]} Bg5 {[%emt 0:
00:00]} 28. Bxg5 {[%emt 0:00:59]} hxg5 {[%emt 0:00:03]} 29. Qd2 {[%emt 0:00:28]
} Na6 {[%emt 0:05:01]} 30. Nf5 {[%emt 0:00:38]} f6 {[%emt 0:01:19]} 31. Ne7+ {
[%emt 0:00:08]} Kh8 {[%emt 0:01:23]} 32. Nxc8 {[%emt 0:00:19]} Qxc8 {[%emt 0:
00:00]} 33. Rc1 {[%emt 0:01:19]} Qd8 {[%emt 0:02:23]} 34. Qa5 {[%emt 0:01:02]}
Qxa5 {[%emt 0:00:58]} 35. Nxa5 {[%emt 0:00:05]} Bd7 {[%emt 0:00:25]} 36. Nb7 {
[%emt 0:00:48]} Nf7 {[%emt 0:03:33]} 37. Bd3 {[%emt 0:00:30]} Kg8 {[%emt 0:00:
00]} 38. Be2 {[%emt 0:01:50]} g6 {[%emt 0:00:13]} 39. Ra1 {[%emt 0:01:44]} Nc5
{[%emt 0:02:55]} 40. Ra8+ {[%emt 0:01:17]} Kg7 {[%emt 0:00:30]} 41. Nxc5 {
[%emt 0:34:13]} dxc5 {[%emt 0:30:06]} 42. Ra7 {[%emt 0:00:13]} 1-0

[Event "44th Chess Olympiad Open 2022"]
[Site "Chennai"]
[Date "2022.07.29"]
[Round "1.43"]
[White "Gretarsson, Helgi Ass"]
[Black "Fomevor, Cephas Clinton"]
[Result "1-0"]
[WhiteElo "2472"]
[BlackElo "1830"]
[Annotator "ChessBase"]
[PlyCount "61"]
[EventDate "2022.??.??"]
[TimeControl "60"]

1. c4 {[%emt 0:00:03]} c6 {[%emt 0:00:10]} 2. Nf3 {[%emt 0:00:56]} Nf6 {
[%emt 0:00:25]} 3. b3 {[%emt 0:01:21]} d5 {[%emt 0:01:04]} 4. e3 {[%emt 0:00:
00]} Bf5 {[%emt 0:02:06]} 5. Bb2 {[%emt 0:02:40]} e6 {[%emt 0:02:53]} 6. Nh4 {
[%emt 0:08:21]} Bg4 {[%emt 0:04:33]} 7. Qc2 {[%emt 0:00:11]} Ne4 {[%emt 0:00:
00]} 8. g3 {[%emt 0:04:49]} Nf6 {[%emt 0:04:41]} 9. h3 {[%emt 0:16:40]} Bh5 {
[%emt 0:00:18]} 10. Bg2 {[%emt 0:02:51]} Be7 {[%emt 0:03:10]} 11. g4 {[%emt 0:
00:00]} Bg6 {[%emt 0:00:28]} 12. Nxg6 {[%emt 0:00:08]} hxg6 {[%emt 0:00:11]}
13. g5 {[%emt 0:00:08]} Nh5 {[%emt 0:07:01]} 14. h4 {[%emt 0:00:08]} Nd7 {
[%emt 0:02:04]} 15. Nc3 {[%emt 0:08:28]} dxc4 {[%emt 0:04:06]} 16. bxc4 {
[%emt 0:00:02]} Ne5 {[%emt 0:00:30]} 17. Bf1 {[%emt 0:00:21]} Nf3+ {[%emt 0:00:
00]} 18. Ke2 {[%emt 0:00:16]} Nxg5 {[%emt 0:03:19]} 19. hxg5 {[%emt 0:11:59]}
Ng3+ {[%emt 0:00:07]} 20. fxg3 {[%emt 0:00:05]} Rxh1 {[%emt 0:00:02]} 21. Ne4 {
[%emt 0:10:14]} Rh2+ {[%emt 0:21:54]} 22. Kf3 {[%emt 0:00:08]} Bxg5 {[%emt 0:
00:00]} 23. Bxg7 {[%emt 0:02:13]} f5 {[%emt 0:00:38]} 24. Nxg5 {[%emt 0:01:09]}
Qxg5 {[%emt 0:00:19]} 25. Bg2 {[%emt 0:00:08]} Rd8 {[%emt 0:02:53]} 26. Rg1 {
[%emt 0:07:37]} Qe7 {[%emt 0:02:54]} 27. Be5 {[%emt 0:00:21]} c5 {[%emt 0:00:
00]} 28. Kf2 {[%emt 0:07:08]} Qd7 {[%emt 0:02:18]} 29. d4 {[%emt 0:00:43]} b6 {
[%emt 0:02:41]} 30. g4 {[%emt 0:03:51]} Qe7 {[%emt 0:03:01]} 31. Bxh2 {[%emt 0:
00:00]} 1-0

[Event "44th Chess Olympiad Open 2022"]
[Site "Chennai"]
[Date "2022.07.29"]
[Round "1.43"]
[White "Hasford, John Kojo"]
[Black "Gretarsson, Hjorvar Steinn"]
[Result "0-1"]
[WhiteElo "1976"]
[BlackElo "2563"]
[Annotator "RC"]
[PlyCount "88"]
[EventDate "2022.??.??"]
[TimeControl "60"]

1. d4 {[%emt 0:01:03]} d6 {[%emt 0:00:07]} 2. c4 {[%emt 0:00:34]} Nf6 {[%emt 0:
00:00]} 3. Nc3 {[%emt 0:00:29]} g6 {[%emt 0:00:06]} 4. Bf4 {[%emt 0:02:17]} Bg7
{[%emt 0:05:42]} 5. Nf3 {[%emt 0:02:01]} O-O {[%emt 0:00:26]} 6. h3 {[%emt 0:
00:00]} Nbd7 {[%emt 0:00:16]} 7. e3 {[%emt 0:01:07]} b6 {[%emt 0:00:12]} 8. Be2
{[%emt 0:02:01]} Bb7 {[%emt 0:00:09]} 9. Qc2 {[%emt 0:00:20]} e5 {[%emt 0:00:
00]} 10. Bg3 {[%emt 0:01:40]} Qe7 {[%emt 0:07:24]} 11. O-O {[%emt 0:02:05]}
exd4 {[%emt 0:08:10]} 12. exd4 {[%emt 0:04:03]} Ne4 {[%emt 0:04:15]} 13. Nxe4 {
[%emt 0:03:38]} Bxe4 {[%emt 0:00:35]} 14. Qd2 {[%emt 0:01:09]} Rae8 {[%emt 0:
00:00]} 15. Rfe1 {[%emt 0:00:58]} Qd8 {[%emt 0:06:17]} 16. Rad1 {[%emt 0:01:09]
} h6 {[%emt 0:03:25]} 17. h4 {[%emt 0:07:22]} Nf6 {[%emt 0:04:40]} 18. Bf4 {
[%emt 0:06:09]} Kh7 {[%emt 0:07:16]} 19. Nh2 {[%emt 0:01:30]} Bb7 {[%emt 0:00:
00]} 20. Bf3 {[%emt 0:04:34]} Ne4 {[%emt 0:03:29]} 21. Bxe4 {[%emt 0:05:26]}
Bxe4 {[%emt 0:00:31]} 22. f3 {[%emt 0:00:43]} Bf5 {[%emt 0:01:17]} 23. Bg3 {
[%emt 0:02:28]} d5 {[%emt 0:02:41]} 24. b3 {[%emt 0:05:50]} dxc4 {[%emt 0:00:
00]} 25. bxc4 {[%emt 0:00:04]} Bf6 {[%emt 0:01:16]} 26. Rxe8 {[%emt 0:04:08]}
Rxe8 {[%emt 0:00:09]} 27. Qf4 {[%emt 0:00:20]} c5 {[%emt 0:00:28]} 28. Ng4 {
[%emt 0:04:54]} Bg7 {[%emt 0:03:05]} 29. d5 {[%emt 0:01:49]} h5 {[%emt 0:00:11]
} 30. Nf2 {[%emt 0:02:08]} Be5 {[%emt 0:00:24]} 31. Qxe5 {[%emt 0:00:51]} Rxe5
{[%emt 0:00:06]} 32. Bxe5 {[%emt 0:00:28]} Qe8 {[%emt 0:06:11]} 33. Re1 {
[%emt 0:05:30]} b5 {[%emt 0:01:19]} 34. Ne4 {[%emt 0:01:08]} Bxe4 {[%emt 0:00:
00]} 35. Rxe4 {[%emt 0:00:37]} bxc4 {[%emt 0:02:44]} 36. Bf4 {[%emt 0:07:32]}
Qa4 {[%emt 0:01:13]} 37. d6 {[%emt 0:00:48]} Qd1+ {[%emt 0:00:53]} 38. Kf2 {
[%emt 0:01:17]} c3 {[%emt 0:00:59]} 39. Rc4 {[%emt 0:04:03]} Qd5 {[%emt 0:00:
00]} 40. d7 {[%emt 0:03:05]} Qxc4 {[%emt 0:00:19]} 41. d8=Q {[%emt 0:33:19]}
Qxf4 {[%emt 0:30:08]} 42. Qd3 {[%emt 0:00:34]} Qxh4+ {[%emt 0:00:21]} 43. Ke2 {
[%emt 0:00:38]} Qd4 {[%emt 0:00:07]} 44. Qc2 {[%emt 0:00:51]} Kg7 {[%emt 0:00:
00]} 0-1

[Event "44th Chess Olympiad Open 2022"]
[Site "Chennai"]
[Date "2022.07.29"]
[Round "1.43"]
[White "Anhwere, Bernard"]
[Black "Kjartansson, Gudmundur"]
[Result "0-1"]
[WhiteElo "1890"]
[BlackElo "2448"]
[Annotator "RC"]
[PlyCount "60"]
[EventDate "2022.??.??"]
[TimeControl "60"]

1. d4 {[%emt 0:00:04]} Nf6 {[%emt 0:00:08]} 2. Nf3 {[%emt 0:00:28]} b6 {
[%emt 0:01:37]} 3. g3 {[%emt 0:00:18]} Bb7 {[%emt 0:00:09]} 4. Bg2 {[%emt 0:00:
00]} g6 {[%emt 0:00:17]} 5. O-O {[%emt 0:01:05]} Bg7 {[%emt 0:00:10]} 6. c4 {
[%emt 0:02:00]} O-O {[%emt 0:00:06]} 7. Nc3 {[%emt 0:00:06]} Ne4 {[%emt 0:00:
00]} 8. Qc2 {[%emt 0:03:14]} Nxc3 {[%emt 0:00:11]} 9. Qxc3 {[%emt 0:00:12]} c5
{[%emt 0:00:52]} 10. Qd3 {[%emt 0:01:44]} d6 {[%emt 0:06:22]} 11. Bg5 {[%emt 0:
00:00]} Nd7 {[%emt 0:01:58]} 12. Rad1 {[%emt 0:02:00]} Rc8 {[%emt 0:09:45]} 13.
Be3 {[%emt 0:13:21]} cxd4 {[%emt 0:01:32]} 14. Bxd4 {[%emt 0:04:14]} e5 {
[%emt 0:03:12]} 15. Bc3 {[%emt 0:05:28]} e4 {[%emt 0:01:35]} 16. Qxd6 {[%emt 0:
00:00]} exf3 {[%emt 0:03:02]} 17. exf3 {[%emt 0:01:42]} Bxc3 {[%emt 0:00:35]}
18. bxc3 {[%emt 0:04:55]} Nc5 {[%emt 0:01:37]} 19. Qf4 {[%emt 0:02:03]} Qc7 {
[%emt 0:04:56]} 20. Qh6 {[%emt 0:01:26]} Rcd8 {[%emt 0:05:11]} 21. Rd4 {
[%emt 0:02:54]} Rfe8 {[%emt 0:02:54]} 22. Rh4 {[%emt 0:03:08]} f6 {[%emt 0:00:
00]} 23. Rd4 {[%emt 0:01:29]} Ne6 {[%emt 0:01:29]} 24. Rg4 {[%emt 0:02:41]} Qg7
{[%emt 0:00:41]} 25. Qc1 {[%emt 0:01:33]} f5 {[%emt 0:04:13]} 26. Rh4 {[%emt 0:
00:00]} Rd3 {[%emt 0:01:10]} 27. Re1 {[%emt 0:03:56]} Qxc3 {[%emt 0:02:00]} 28.
Qb1 {[%emt 0:02:04]} Red8 {[%emt 0:06:42]} 29. Bf1 {[%emt 0:02:28]} Rd1 {
[%emt 0:06:25]} 30. Rxd1 {[%emt 0:06:24]} Qxf3 {[%emt 0:00:09]} 0-1

[Event "44th Chess Olympiad Open 2022"]
[Site "Chennai"]
[Date "2022.07.29"]
[Round "1.44"]
[White "Panjwani, Raja"]
[Black "Barcon, Harmon"]
[Result "1-0"]
[WhiteElo "2450"]
[BlackElo "1902"]
[Annotator "RC"]
[PlyCount "69"]
[EventDate "2022.??.??"]
[TimeControl "60"]

1. d4 {[%emt 0:00:03]} Nf6 {[%emt 0:00:12]} 2. c4 {[%emt 0:00:12]} e6 {[%emt 0:
00:00]} 3. Nf3 {[%emt 0:00:11]} d5 {[%emt 0:00:26]} 4. g3 {[%emt 0:00:13]} Be7
{[%emt 0:02:58]} 5. Bg2 {[%emt 0:00:08]} O-O {[%emt 0:02:19]} 6. O-O {[%emt 0:
00:00]} c6 {[%emt 0:01:45]} 7. Nc3 {[%emt 0:00:12]} Nbd7 {[%emt 0:01:56]} 8. b3
{[%emt 0:00:40]} Re8 {[%emt 0:01:56]} 9. Qc2 {[%emt 0:05:13]} a6 {[%emt 0:00:
00]} 10. e4 {[%emt 0:14:15]} dxe4 {[%emt 0:04:37]} 11. Nxe4 {[%emt 0:00:08]}
Nf8 {[%emt 0:03:22]} 12. Bb2 {[%emt 0:02:14]} Qc7 {[%emt 0:15:22]} 13. Rad1 {
[%emt 0:03:02]} Bd7 {[%emt 0:01:36]} 14. Ne5 {[%emt 0:04:21]} Rad8 {[%emt 0:00:
00]} 15. Ng5 {[%emt 0:00:53]} h6 {[%emt 0:09:18]} 16. Ngxf7 {[%emt 0:00:18]}
Rc8 {[%emt 0:00:06]} 17. Bh3 {[%emt 0:05:25]} b5 {[%emt 0:07:51]} 18. c5 {
[%emt 0:02:56]} Nd5 {[%emt 0:03:24]} 19. Rde1 {[%emt 0:02:55]} Bf6 {[%emt 0:00:
00]} 20. Nd6 {[%emt 0:00:47]} Rcd8 {[%emt 0:03:13]} 21. Nxd7 {[%emt 0:06:21]}
Qxd7 {[%emt 0:01:35]} 22. Nxe8 {[%emt 0:00:10]} Rxe8 {[%emt 0:00:36]} 23. Re4 {
[%emt 0:05:13]} Qf7 {[%emt 0:03:19]} 24. Rfe1 {[%emt 0:01:31]} Qg6 {[%emt 0:00:
00]} 25. Qe2 {[%emt 0:01:00]} Nc7 {[%emt 0:03:31]} 26. Qf3 {[%emt 0:02:17]} Nd5
{[%emt 0:00:57]} 27. Bg4 {[%emt 0:06:53]} Re7 {[%emt 0:04:51]} 28. Bc1 {
[%emt 0:00:52]} Qe8 {[%emt 0:02:11]} 29. Bf4 {[%emt 0:01:45]} Qd7 {[%emt 0:00:
00]} 30. Bd6 {[%emt 0:01:28]} Re8 {[%emt 0:02:43]} 31. Bxf8 {[%emt 0:01:44]}
Kxf8 {[%emt 0:00:16]} 32. Rxe6 {[%emt 0:00:49]} Rxe6 {[%emt 0:00:14]} 33. Rxe6
{[%emt 0:00:53]} Qc7 {[%emt 0:00:44]} 34. Bh5 {[%emt 0:01:03]} Ne7 {[%emt 0:00:
00]} 35. Rxf6+ {[%emt 0:00:55]} 1-0

[Event "44th Chess Olympiad Open 2022"]
[Site "Chennai"]
[Date "2022.07.29"]
[Round "1.45"]
[White "Gan-Erdene, Sugar"]
[Black "Lima, Osvaldo Dos Santos"]
[Result "1/2-1/2"]
[WhiteElo "2428"]
[BlackElo "1863"]
[Annotator "TA"]
[PlyCount "43"]
[EventDate "2022.??.??"]
[TimeControl "60"]

{[%evp 15,43,30,37,1,21,33,36,38,25,25,81,83,87,79,86,86,78,67,70,68,100,89,
102,100,112,115,140,132,134,137]} 1. d4 {[%emt 0:00:04]} Nf6 {[%emt 0:00:23]}
2. c4 {[%emt 0:00:09]} g6 {[%emt 0:00:26]} 3. Nf3 {[%emt 0:00:27]} Bg7 {
[%emt 0:00:53]} 4. g3 {[%emt 0:00:16]} d6 {[%emt 0:03:01]} 5. Bg2 {[%emt 0:00:
00]} Nc6 {[%emt 0:01:19]} 6. O-O {[%emt 0:01:45]} O-O {[%emt 0:00:33]} 7. Nc3 {
[%emt 0:01:15]} a6 {[%emt 0:00:54]} 8. Qd3 {[%emt 0:02:04] 8.Bf4 is setting a
new trend.} e5 {[%emt 0:03:16]} 9. dxe5 {[%emt 0:03:33] E63: King's Indian:
Fianchetto: Panno Variation with 7...a6.} (9. d5 {with more complications.} Ne7
10. e4 b5 11. Bg5) 9... Nxe5 {[%emt 0:00:08]} (9... dxe5 {feels hotter.} 10.
Qxd8 Rxd8 11. Be3 Ng4) 10. Nxe5 {[%emt 0:00:54]} dxe5 {[%emt 0:00:02]} 11. Qxd8
{[%emt 0:00:36] White is slightly better.} Rxd8 {[%emt 0:00:04]} 12. Bg5 {
[%emt 0:00:20] [#] aiming for Ne4.} h6 {[%emt 0:00:58]} (12... Re8 $11 {
remains equal.}) 13. Bxf6 $16 {[%emt 0:00:20]} Bxf6 {[%emt 0:00:49]} 14. Nd5 {
[%emt 0:00:14]} Bg7 {[%emt 0:01:31]} 15. Nxc7 {[%emt 0:00:37]} ({Don't take} 
15. Ne7+ Kf8 16. Nxc8 Raxc8 $11) 15... Rb8 {[%emt 0:00:07] [#]} 16. Nd5 $146 {
[%emt 0:06:36]} ({Predecessor:} 16. e4 Rd4 17. b3 Be6 18. Rfd1 Rc8 19. Rxd4
exd4 20. Nxe6 fxe6 21. e5 Rc7 22. f4 {1-0 (40) Martynkova,O (2202)-Vernigora,A
(1610) Lvov 2017}) 16... Be6 {[%emt 0:02:06]} 17. Rfd1 {[%emt 0:05:11]} Kf8 {
[%emt 0:00:32]} 18. Rac1 {[%emt 0:00:44]} f5 {[%emt 0:00:20]} 19. e4 {[%emt 0:
00:00] White is more active.} f4 {[%emt 0:01:14]} 20. b4 {[%emt 0:04:33]} g5 {
[%emt 0:01:37]} 21. c5 {[%emt 0:00:57]} Bd7 {[%emt 0:09:00]} 22. Bf1 {[%emt 0:
00:00] Weighted Error Value: White=0.04 (flawless) /Black=0.12 (very precise)}
1/2-1/2

[Event "44th Chess Olympiad Open 2022"]
[Site "Chennai"]
[Date "2022.07.29"]
[Round "1.45"]
[White "Amartuvshin, Ganzorig"]
[Black "Alegre, Fabio Costa"]
[Result "1-0"]
[WhiteElo "2409"]
[BlackElo "1809"]
[Annotator "RC"]
[PlyCount "20"]
[EventDate "2022.??.??"]
[TimeControl "60"]

1. d4 {[%emt 0:00:04]} Nf6 {[%emt 0:00:08]} 2. c4 {[%emt 0:00:13]} e6 {[%emt 0:
00:00]} 3. Nf3 {[%emt 0:00:15]} d5 {[%emt 0:00:59]} 4. Nc3 {[%emt 0:00:10]} c6
{[%emt 0:00:38]} 5. e3 {[%emt 0:00:08]} Bd6 {[%emt 0:01:15]} 6. Qc2 {[%emt 0:
00:00]} Nbd7 {[%emt 0:00:59]} 7. Bd3 {[%emt 0:00:19]} dxc4 {[%emt 0:00:36]} 8.
Bxc4 {[%emt 0:00:10]} b5 {[%emt 0:00:02]} 9. Be2 {[%emt 0:00:16]} Bb7 {[%emt 0:
00:00]} 10. O-O {[%emt 0:01:25]} a6 {[%emt 0:01:02]} 1-0

[Event "44th Chess Olympiad Open 2022"]
[Site "Chennai"]
[Date "2022.07.29"]
[Round "1.45"]
[White "Pereira, Sergio Murilo de Ar"]
[Black "Batsuren, Dambasuren"]
[Result "0-1"]
[WhiteElo "2093"]
[BlackElo "2518"]
[Annotator "RC"]
[PlyCount "53"]
[EventDate "2022.??.??"]
[TimeControl "60"]

1. e4 {[%emt 0:00:13]} Nc6 {[%emt 0:00:22]} 2. Nf3 {[%emt 0:00:34]} d6 {
[%emt 0:00:08]} 3. d4 {[%emt 0:02:46]} Nf6 {[%emt 0:00:15]} 4. d5 {[%emt 0:00:
00]} Nb8 {[%emt 0:00:15]} 5. Nc3 {[%emt 0:00:54]} c6 {[%emt 0:02:51]} 6. h3 {
[%emt 0:10:32]} g6 {[%emt 0:02:00]} 7. dxc6 {[%emt 0:09:12]} Nxc6 {[%emt 0:00:
00]} 8. Bc4 {[%emt 0:00:12]} Bg7 {[%emt 0:01:58]} 9. e5 {[%emt 0:01:14]} Nxe5 {
[%emt 0:11:00]} 10. Nxe5 {[%emt 0:00:14]} dxe5 {[%emt 0:00:11]} 11. Qxd8+ {
[%emt 0:00:17]} Kxd8 {[%emt 0:00:06]} 12. Be3 {[%emt 0:14:44]} Bd7 {[%emt 0:00:
00]} 13. O-O-O {[%emt 0:04:12]} Kc7 {[%emt 0:09:23]} 14. Bc5 {[%emt 0:05:18]}
Bf8 {[%emt 0:03:52]} 15. Rhe1 {[%emt 0:06:12]} b6 {[%emt 0:00:49]} 16. Ba3 {
[%emt 0:02:36]} e6 {[%emt 0:01:11]} 17. Bxf8 {[%emt 0:00:17]} Rhxf8 {[%emt 0:
00:00]} 18. Rxe5 {[%emt 0:00:23]} Bc6 {[%emt 0:00:33]} 19. g4 {[%emt 0:04:06]}
Rad8 {[%emt 0:03:04]} 20. g5 {[%emt 0:03:13]} Nh5 {[%emt 0:01:52]} 21. Nb5+ {
[%emt 0:18:29]} Bxb5 {[%emt 0:01:11]} 22. Rxd8 {[%emt 0:00:18]} Rxd8 {[%emt 0:
00:00]} 23. Bxb5 {[%emt 0:00:04]} Rd4 {[%emt 0:04:52]} 24. Re3 {[%emt 0:03:09]}
Rd5 {[%emt 0:11:24]} 25. Be8 {[%emt 0:00:58]} Rf5 {[%emt 0:01:51]} 26. Rd3 {
[%emt 0:00:20]} Ng7 {[%emt 0:00:15]} 27. Ra3 {[%emt 0:03:42]} 0-1

[Event "44th Chess Olympiad Open 2022"]
[Site "Chennai"]
[Date "2022.07.29"]
[Round "1.46"]
[White "Priasmoro, Novendra"]
[Black "Lau, Lut Yin Luke"]
[Result "1/2-1/2"]
[WhiteElo "2494"]
[BlackElo "2027"]
[Annotator "TA"]
[PlyCount "64"]
[EventDate "2022.??.??"]
[TimeControl "60"]

{[%evp 18,64,27,28,25,33,43,45,35,41,20,39,30,31,51,70,70,68,84,0,0,0,0,0,0,-2,
39,-56,27,-106,-64,-60,-50,-91,-91,-83,-14,-42,-26,-33,-14,-275,-275,-275,-275,
-275,-275,-275,-267]} 1. e4 {[%emt 0:00:05]} e5 {[%emt 0:01:30]} 2. Nf3 {
[%emt 0:00:07]} Nf6 {[%emt 0:00:11]} 3. Nxe5 {[%emt 0:00:07]} d6 {[%emt 0:00:
00]} 4. Nf3 {[%emt 0:00:05]} Nxe4 {[%emt 0:00:05]} 5. d4 {[%emt 0:00:04]} d5 {
[%emt 0:02:03]} 6. Bd3 {[%emt 0:00:09]} Bd6 {[%emt 0:00:03]} 7. O-O {[%emt 0:
00:00]} O-O {[%emt 0:01:17]} 8. c4 {[%emt 0:00:31]} c6 {[%emt 0:00:04]} 9. Re1
{[%emt 0:00:45]} Bf5 {[%emt 0:04:39]} 10. Qb3 {[%emt 0:02:45]} Nd7 {[%emt 0:00:
00][%cal Yd7c5] C42: Petroff Defence: 3 Nxe5 and unusual White 3rd moves.} 11.
cxd5 {[%emt 0:04:24]} Nec5 {[%emt 0:02:08]} 12. dxc5 {[%emt 0:00:10]} Nxc5 {
[%emt 0:00:03] [#] White is slightly better.} 13. Bxf5 $1 {[%emt 0:00:07]} Nxb3
{[%emt 0:01:08]} 14. axb3 {[%emt 0:00:05]} cxd5 {[%emt 0:00:33]} 15. Nc3 {
[%emt 0:05:33]} Qb6 {[%emt 0:15:21]} 16. Be3 {[%emt 0:30:42] Prevents d4.} Qxb3
{[%emt 0:13:12]} 17. Nd4 {[%emt 0:17:07] [#] 0x0.00144b4ef3cedp-1022s more
active pieces. The black rooks are badly placed.} Qxb2 $146 {[%emt 0:18:52]} ({
Predecessor:} 17... Qc4 18. Ra4 Qc7 19. g3 Qd8 20. Rd1 Re8 21. Nf3 Qf6 22. Rxd5
Be5 23. Nxe5 Qxf5 {½-½ (30) Lagno,K (2552)-Muzychuk,M (2552) Saint Louis 2020
}) 18. Rec1 {[%emt 0:17:12]} (18. Nxd5 $16 {Threatens to win with Reb1.} Be5
19. Reb1 Bxd4 20. Rxb2 Bxb2 21. Rb1 (21. Rxa7 Rxa7 22. Bxa7 Ra8 $15)) 18... Be5
$11 {[%emt 0:08:41]} 19. Rab1 $1 {[%emt 0:03:20] The board is on fire.} Qa3 {
[%emt 0:00:27]} 20. Ndb5 {[%emt 0:02:03]} Qa5 {[%emt 0:06:50][%cal Yd5d4]} 21.
Nxd5 {[%emt 0:01:18]} a6 {[%emt 0:06:10]} (21... Rad8 $5 {[%cal Rd8d5]} 22. Rd1
Rfe8 $11) 22. Rc5 {[%emt 0:03:41]} (22. Bb6 $14 Qd2 23. Nbc3 Bxc3 24. Nxc3)
22... Qd8 {[%emt 0:03:14]} (22... axb5 $15 23. Ne7+ Kh8 24. Rxe5 Qc7) 23. f4 {
[%emt 0:05:40]} (23. Nbc7 $11 Rb8 24. g3) 23... Bxf4 {[%emt 0:03:56]} 24. Bxf4
{[%emt 0:00:41] Black must now prevent Nd6.} axb5 {[%emt 0:00:07]} 25. Bc7 {
[%emt 0:02:59] A strong pair of Bishops.} Qh4 {[%emt 0:01:13]} 26. Bg3 {
[%emt 0:00:15]} Qh6 {[%emt 0:03:48]} ({Better is} 26... Qd4+ $17 27. Bf2 Qd2)
27. Bf4 {[%emt 0:00:22]} Qa6 {[%emt 0:01:59] Hoping for ...Rfe8.} 28. Rcxb5 {
[%emt 0:01:11]} Rad8 {[%emt 0:01:08][%cal Yd8d5] ...Rxd5! is the strong threat.
} 29. Bc7 $2 {[%emt 0:01:33] [#] This move loses the game for White.} ({But not
} 29. Ne7+ Kh8 30. Bg3 Rd1+ $3 31. Rxd1 Qxb5 $17) (29. Bg3 $11 {and White is
okay.}) 29... Rxd5 $1 $19 {[%emt 0:01:28] Black has a decisive advantage.} 30.
Rxd5 {[%emt 0:00:56]} Qc6 {[%emt 0:00:28][%csl Yc7,Yd5]} 31. Rdb5 {[%emt 0:01:
01]} Qxc7 {[%emt 0:00:08]} 32. Be4 {[%emt 0:00:23]} Rb8 {[%emt 0:01:24]
Weighted Error Value: White=0.48/Black=0.17 (very precise) . An unexpected
result.} 1/2-1/2